Cogmind - Beta 15 @@@ ROGUE MODE // 2025.05.12 @ 19:43:04 Player: Sidtz Result: Destroyed by G-34 Mercenary with Small Laser Performance ------------- Evolutions (0) 0 Regions Visited (1) 200 Robots Destroyed (14) 70 Value Destroyed (267) 267 Prototype IDs (0) 0 Alien Tech Used (0) 0 Bonus (0) 0 TOTAL SCORE: 537 Bonus ------- None Cogmind --------- Core Integrity 0/250 Matter 265/450 Energy 250/250 System Corruption 1% Temperature Warm (136) Movement Treading (240) Ox1 Location -10/Materials Parts ------- > --- POWER (1) -------- Ion Engine > --- PROPULSION (2) --- Light Treads > --- UTILITY (2) ------ Large Storage Unit Large Matter Pod > --- WEAPON (2) ------- Medium Laser Light Assault Rifle > --- INVENTORY (15) --- Wheel Wheel Small Storage Unit Huge Storage Unit ECM Suite Grenade Launcher Peak State ------------ > --- POWER ------------ Ion Engine > --- PROPULSION ------- Aluminum Leg Aluminum Leg > --- UTILITY ---------- Small Storage Unit Large Matter Pod > --- WEAPON ----------- Assault Rifle Light Assault Rifle > --- INVENTORY -------- Light Ion Engine Light Treads Light Treads Wheel Wheel Small Laser [Rating: 7] Favorites ----------- Power Ion Engine Engine Ion Engine Propulsion Aluminum Leg Treads Light Treads Leg Aluminum Leg Wheel Wheel Utility Large Matter Pod Storage Large Matter Pod Weapon Light Assault Rifle Energy Gun Medium Laser Ballistic Gun Light Assault Rifle Build | -11 -10 ------- Run | Yrd Mat Slots Evolved . | . . Power . | . . Propulsion . | . . Utility . | . . Weapon . | . . Parts Attached 15 | 7 8 Power 3 | 2 1 Engine 3 | 2 1 Core . | . . Reactor . | . . Propulsion 4 | 2 2 Treads 1 | 1 . Leg 2 | . 2 Wheel 1 | 1 . Hover . | . . Flight . | . . Utility 4 | 1 3 Device . | . . Storage 4 | 1 3 Processor . | . . Hackware . | . . Protection . | . . Artifact . | . . Weapon 4 | 2 2 Energy Gun 2 | . 2 Energy Cannon . | . . Ballistic Gun 2 | 2 . Ballistic Cannon . | . . Launcher . | . . Special Weapon . | . . Impact Weapon . | . . Slashing Weapon . | . . Piercing Weapon . | . . Special Melee Weapon . | . . Unidentified Prototypes . | . . Parts Lost 5 | . 5 Power 2 | . 2 Propulsion 2 | . 2 Utility . | . . Weapon 1 | . 1 Highest Loss Streak 2 | . 2 To Critical Strikes 1 | . 1 Average Backups 7 | 4 7 Power . | . . Propulsion 3 | 2 3 Utility 2 | . 2 Weapon 1 | . 1 Tool/Special . | . . Unused Backups 5 | . 5 Power . | . . Propulsion 2 | . 2 Utility 2 | . 2 Weapon 1 | . 1 Tool/Special . | . . Average Slot Usage (%) 84 | . 84 Engine 5 | . 5 Treads 1 | . 1 Leg 23 | . 23 Storage 27 | . 27 Energy Gun 7 | . 7 Ballistic Gun 17 | . 17 Peak Build Rating 7 | 6 7 Average Rating 5 | 4 5 On Entrance 3 | . 6 Naked Turns . | . . Heaviest Build 31 | 13 31 Greatest Support 20 | 20 20 Greatest Overweight (x) 2 | 1 2 Average Overweight (x) . | . . Largest Inventory Capacity 15 | 8 15 Average Capacity 13 | 6 13 Most Carried 8 | 6 8 Average Carried 7 | 4 7 Final Capacity 15 | 8 15 Final Carried 6 | 6 6 Class Distribution -------------------- 100% | Mutant Dominant Class ---------------- Mutant | -10/Materials Resources | -11 -10 ----------- Run | Yrd Mat Matter Collected 490 | 195 295 Remotely . | . . Salvage Created 360 | . 360 Parts 24 | . 24 Haulers Intercepted . | . . Recyclers Shooed 2 | . 2 Parts Field Recycled . | . . Retrieved Matter . | . . Parts Self-Destructed . | . . Prevented . | . . Kills | -11 -10 ------- Run | Yrd Mat Combat Hostiles Destroyed 10 | . 10 Guns 10 | . 10 Classes Destroyed 4 | . 4 Worker 2 | . 2 Watcher 2 | . 2 Swarmer 5 | . 5 Grunt 5 | . 5 Best Kill Streak 4 | . 4 Combat Bots Only 3 | . 3 Max Kills in Single Turn 1 | . 1 Gunslinging . | . . Exploded . | . . Melee . | . . Uniques/NPCs Destroyed . | . . Combat | -11 -10 -------- Run | Yrd Mat Hostile Shots Fired 121 | . 121 Missed 38 | . 38 Hits 83 | . 83 Projectile 83 | . 83 Critical Strikes 5 | . 5 Damage Taken 866 | . 866 Core 255 | . 255 Absorbed by Shields . | . . Core Remaining (%) 100 | 100 . Volleys Fired 67 | . 67 Largest 2 | . 2 Hottest 70 | . 70 Shots Fired 124 | . 124 Gun 124 | . 124 Cannon . | . . Launcher . | . . Special . | . . Kinetic 98 | . 98 Thermal 26 | . 26 Explosive . | . . Electromagnetic . | . . Robot Hit Streak 6 | . 6 Robot Miss Streak 7 | . 7 Penetration Max . | . . Secondary Targets 3 | . 3 Max Gunslinging Chain 1 | . 1 Shots Hit Robots 58 | . 58 Core Hits 25 | . 25 Critical Kills . | . . Critical Parts Destroyed 1 | . 1 Critical Strikes 2 | . 2 Burn 1 | . 1 Destroy 1 | . 1 Melee Attacks . | . . Impact . | . . Slashing . | . . Piercing . | . . Sneak Attacks . | . . Combat Hostiles . | . . Follow-up Attacks . | . . Damage Inflicted 614 | . 614 Guns 611 | . 611 Cannons . | . . Explosions . | . . Melee . | . . Ramming 3 | . 3 Kinetic 459 | . 459 Thermal 152 | . 152 Explosive . | . . Electromagnetic . | . . Impact . | . . Slashing . | . . Piercing . | . . Highest Corruption 1 | . 1 Average Corruption 1 | . 1 Corruption Purged . | . . Corruption Blocked . | . . Effects 12 | . 12 Message Errors 4 | . 4 Matter Fused 2 | . 2 Heat Flow Errors 2 | . 2 Energy Discharges 1 | . 1 Data Loss (major) 1 | . 1 Misfires 2 | . 2 Overload Shots . | . . Overflow Damage . | . . Projectiles . | . . Explosions . | . . Melee . | . . Knockbacks . | . . Impact . | . . Kinetic . | . . Secondary . | . . Self-Inflicted Damage . | . . Shots . | . . Rammed . | . . Targets Rammed 1 | . 1 Kicked 1 | . 1 Crushed . | . . Highest Temperature 285 | . 285 Average Temperature 102 | . 102 Received Heat Transfer 342 | . 342 Siege Activations . | . . Martial Activations . | . . Shielding Activations . | . . Robots Disrupted . | . . Combat Hostiles . | . . Robots Corrupted . | . . Combat Hostiles . | . . Parts Fried . | . . Impact Corruptions . | . . Robots Melted . | . . Combat Hostiles . | . . Parts Melted 1 | . 1 Heat Transferred 518 | . 518 Parts Sabotaged . | . . Parts Stolen . | . . Parts Stripped . | . . Power Chain Reactions . | . . Alert | -11 -10 ------- Run | Yrd Mat Maximum Alert Level . | . . Low Security (%) 100 | 100 100 Level 1 . | . . Level 2 . | . . Level 3 . | . . Level 4 . | . . Level 5 . | . . High Security . | . . Max Security . | . . Peak Influence 70 | . 70 Initial . | . . Average 13 | . 14 Influence Increases 301 | . 301 Destroy 0b10 Robot/C 200 | . 200 Destroy 0b10 Robot/NC 20 | . 20 Destroy Leader 44 | . 44 Successful Hack 36 | . 36 Destroy Structure 1 | . 1 Influence Decreases 291 | . 291 Time Decay 251 | . 251 Lost Part 40 | . 40 Squads Dispatched 2 | . 2 Investigation 2 | . 2 Extermination . | . . Reinforcement . | . . Assault . | . . Garrison . | . . Intercept . | . . Searches Triggered . | . . Construction Impeded . | . . Haulers Reinforced . | . . Active Scanning Responses . | . . Cargo Convoy Interrupts . | . . Stealth | -11 -10 --------- Run | Yrd Mat Distress Signals 1 | . 1 Communications Jammed . | . . Distress Signals . | . . Times Spotted 23 | . 23 Peak Tracking Total 6 | . 6 Tactical Retreats . | . . Traps | -11 -10 ------- Run | Yrd Mat Traps Triggered 1 | . 1 Indirectly . | . . Trap Hack Attempts . | . . Triggered . | . . Disarmed . | . . Reprogrammed . | . . Reused . | . . Traps Extracted . | . . Installed . | . . Triggered . | . . Machines | -11 -10 ---------- Run | Yrd Mat Machines Disabled . | . . Max in Single Turn . | . . Machines Repaired . | . . Machines Dismantled . | . . Machines Sabotaged . | . . Overloaded Fab Kills . | . . Hacking | -11 -10 --------- Run | Yrd Mat Machines Accessed 4 | . 4 Terminals 3 | . 3 Fabricators . | . . Repair Stations . | . . Recycling Units 1 | . 1 Scanalyzers . | . . Garrison Access . | . . Total Hacks 17 | . 17 Successful 7 | . 7 Failed 9 | . 9 Catastrophic 3 | . 3 Database Lockouts 1 | . 1 Manual . | . . Terminals 14 | . 14 Fabricators . | . . Repair Stations . | . . Recycling Units 3 | . 3 Scanalyzers . | . . Garrison Access . | . . Terminal Hacks 5 | . 5 Record 5 | . 5 Fabricator Hacks . | . . Repair Station Hacks . | . . Recycling Unit Hacks 2 | . 2 Recycle Component 1 | . 1 Process 1 | . 1 Scanalyzer . | . . Garrison Access Hacks . | . . Unauthorized Hacks . | . . Terminals . | . . Fabricators . | . . Repair Stations . | . . Recycling Units . | . . Scanalyzers . | . . Garrison Access . | . . Data Cores Recovered . | . . Used . | . . Hacking Detections 4 | . 4 Full Trace Events 3 | . 3 Feedback Events 1 | . 1 Corruption 1 | . 1 Feedback Blocked . | . . Robot Schematics Acquired . | . . Robots Built . | . . Authchips . | . . Time . | . . Total Robot Build Rating . | . . Part Schematics Acquired . | . . Parts Built . | . . Authchips . | . . Time . | . . Total Part Build Rating . | . . Parts Repaired . | . . Time . | . . Parts Recycled 1 | . 1 Recycled Matter 229 | . 229 Retrieved Matter . | . . Retrieved Components . | . . Parts Scanalyzed . | . . Part Schematics Acquired . | . . Parts Damaged . | . . Bothacking | -11 -10 ------------ Run | Yrd Mat Used RIF Installer . | . . Robots Hacked . | . . Non-combat . | . . Combat . | . . Robot Hacks Applied . | . . Relay Couplers Released . | . . Fabnet Peak Effective % . | . . Robots Rewired . | . . Allies Hacked . | . . Hacks Repelled . | . . Allies | -11 -10 -------- Run | Yrd Mat Total Allies . | . . Largest Group . | . . Highest-Rated Group . | . . Highest-Rated Ally . | . . Total Orders . | . . Ally Attacks . | . . Total Damage . | . . Kills . | . . Allies Corrupted . | . . Allies Melted . | . . Intel | -11 -10 ------- Run | Yrd Mat Active Infowar (turns) . | . . Robot Analysis Total . | . . Derelict Logs Recovered . | . . Drone Launches . | . . Drone Recoveries . | . . Exploration | -11 -10 ------------- Run | Yrd Mat Turns Passed 1321 | 74 1247 Spaces Moved 625 | 49 576 Core 14 | 14 . Treads 57 | 9 48 Legs 528 | . 528 Wheels 26 | 26 . Hover . | . . Flight . | . . Fastest Speed 50 | 50 120 Average Speed 174 | 93 181 Slowest Speed 260 | 160 260 Overloaded Moves . | . . Propulsion Burnouts . | . . Robots Hopped . | . . Potential Cave-ins . | . . Cave-ins Triggered . | . . Exploration Rate (%) 29 | 4 54 Regions Visited 1 Branch Regions . Pre-discovered Areas . | . . Known Exits Taken . | . . Unknown Exits Taken 1 | 1 . Scrap Searched . | . . Spaces Dug . | . . Terrain Destroyed . | . . Melee . | . . Projectile . | . . AOE . | . . Terrain Rammed . | . . Walls Destroyed . | . . Machines Disabled . | . . Actions | -11 -10 --------- Run | Yrd Mat Total 740 | 74 666 Wait 10 | 10 . Move 624 | 48 576 Hop . | . . Pick Up 16 | 9 7 Fast Attach 4 | 3 1 Attach 11 | 3 8 Detach 2 | . 2 Swap 3 | 1 2 Drop 2 | . 2 Fire 67 | . 67 Melee . | . . Ram . | . . Kick 1 | . 1 Crush . | . . Escape Stasis . | . . Rewire . | . . Trap . | . . Miscellaneous . | . . Route ------- -11/Scrapyard -10/Materials (discovered 2 exits: [*Mat] / [*Min]) History --------- Turn | Location | Event 22 | -11/Scrapyard | Discovered new exit (range 14) 75 | -11/Scrapyard | Entered Materials 290 | -10/Materials | Discovered new exit (range 13) 301 | -10/Materials | Build established: Mutant 610 | -10/Materials | Central database locked down 667 | -10/Materials | Discovered new exit (range 11) 983 | -10/Materials | Core integrity fell below 50% 1000 | -10/Materials | Core integrity fell below 20% 1322 | -10/Materials | Destroyed by G-34 Mercenary with Small Laser Last Messages --------------- An alarm sounds. ALERT: Alarm triggered, dispatching investigation squad. U-05 Engineer lays Concrete. System corrupted: Matter fused (-5). :GDNV FAD#D9S&3AYK SEL 850YH/OUO7CQKKP| K-01 Serf collects debris. K-01 Serf cleans the Matter Pump. Acquired Ion Engine. Sml. Laser melted. G-34 Mercenary destroyed. Switching to secondary target: G-34 Mercenary. Aluminum Leg destroyed. R-06 Scavenger collects Heat Sink. Map ----- +----------------------------------------------------+ | | | | | | | | | | | | | | | | | | | | | | | | | | | ??????#############??????????????????????????????? | | ??????# """ """ #??????????????????????????????? | | ??????# """"""""" #??????????????????????????????? | | ??????# """"" " #??????????????????????????????? | | ??????# #??????????????????????????????? | | ??????# #??????????????????????????????? | | ??????# #???????##########?????????????? | | ??????# #???##### #?????????????? | | #?????######k########## # """""#?????????????? | | ##????# # """""#?????????????? | | "##???# # """""#?????????????? | | ""#???# + """""#?????????????? | | #???# ##+########## @# """""#?????????????? | | #???# # ## # """""#?????????????? | | #???# # T ## # ! """""#?????????????? | | #???# # * ! ## # #?????????????? | | ##???# # * ## ##########?????????????? | | ##????# # ## #??????????????????????? | | ####### ############# #??????????????????????? | | #??????????????????????? | | = #???######?????????????? | | ][ gg#?? ?????????????? | | ][ ##+#########* #? ??????????????? | | ][ ## #% # ??????????????? | | ## """ # r # """ ???????????????? | | """ ##"" """ + + """""????????????????? | | """ ##"" """ # # """""????????????????? | | """ ##"T """ # #????"?????????????????? | | ##"" """ # #??????????????????????? | | ##"" # #??????????????????????? | | # ## # #??????????????????????? | | # ############ #??????????????????????? | | ########+####?????????# +??????????????????????? | | ??# #????????? #??????????????????????? | | ??# #????????? #??????????????????????? | | ### """ """ #?????????"" #??????????????????????? | | ] # """ """ #????????""" #??????????????????????? | +----------------------------------------------------+ Best States ------------- Heat Dissipation 25 Energy Generation 10 Energy Capacity 250 Matter Stores 289 Matter Capacity 450 Sight Range 16 Terrain Scan Density 10 Evasion (%) 55 Recoil Reduction 1 Item Schematics ----------------- None Robot Schematics ------------------ None Fabricated ------------ Nothing Repaired ---------- Nothing Alien Tech Used ----------------- None Achievements -------------- None Challenges ------------ None Game ------ Seed AssaultPortableWartreads Manual? 0 Play Time 00:18:22 Cumulative 2.4 hours Start 2025.05.12 @ 19:29:49 End 2025.05.12 @ 19:43:04 Sessions 1 Manual Loads 0 Difficulty Rogue Special Mode None Game No. 7 Rogue 7 Adventurer 0 Explorer 0 Win Type - Total 0 Types 0/0/0/0/0/0/0/0/0/0 Lore% 1 Gallery% 5 Achievement% 5 Wizard Run 0 Options --------- Layout 1 ASCII 0 Keyboard 0 Movement Mouse Keybinds 0 Fullscreen 1 Font 24/Smallcaps Map View 50x35 Zoom Use 0% Tactical HUD 0 Map Filters NONE Filters NONE Steam 1 RUN: d7f2c860-f652-48cf-b105-be99397bea63